[Event "German Bundesliga 2021-22"]
[Site "Germany"]
[Date "2022.03.05"]
[Round "1.13"]
[White "Levin, Felix"]
[Black "Ernst, Sipke"]
[Result "0-1"]
[ECO "D12"]
[WhiteElo "2456"]
[BlackElo "2532"]
[Annotator "ChessBase"]
[PlyCount "82"]
[EventDate "2022.03.05"]
[EventType "team-tourn"]
[EventCountry "GER"]
[SourceTitle "playchess.com"]
[Source "ChessBase"]
[SourceQuality "1"]
[TimeControl "40/5400+30:1800+30"]

1. d4 {[%emt 0:00:00]} d5 {[%emt 0:00:00]} 2. Nf3 {[%emt 0:00:00]} Nf6 {[%emt 0:00:00]} 3. c4 {[%emt 0:00:00]} c6 {[%emt 0:00:00]} 4. e3 {[%emt 0:00:00]} Bf5 {[%emt 0:00:00]} 5. Nc3 {[%emt 0:00:00]} e6 {[%emt 0:00:00]} 6. Nh4 {[%emt 0:00:05]} Be4 {[%emt 0:00:00]} 7. f3 {[%emt 0:00:41]} Bg6 {[%emt 0:00:00]} 8. Bd2 {[%emt 0:07:19]} Be7 {[%emt 0:00:00]} 9. Nxg6 {[%emt 0:00:14]} hxg6 {[%emt 0:00:00]} 10. Qb3 {[%emt 0:01:57]} dxc4 {[%emt 0:01:07]} 11. Bxc4 {[%emt 0:15:27]} b5 {[%emt 0:05:32]} 12. Be2 {[%emt 0:00:07]} Nbd7 {[%emt 0:05:29]} 13. O-O-O {[%emt 0:16:06]} a6 {[%emt 0:06:29]} 14. e4 {[%emt 0:05:08]} c5 {[%emt 0:07:18]} 15. e5 {[%emt 0:04:16]} cxd4 {[%emt 0:08:43]} 16. exf6 {[%emt 0:01:55]} dxc3 {[%emt 0:06:55]} 17. Bxc3 {[%emt 0:02:43]} Bxf6 {[%emt 0:07:34]} 18. Kb1 {[%emt 0:02:48]} O-O {[%emt 0:13:30]} 19. Bb4 {[%emt 0:09:17]} Re8 {[%emt 0:04:06]} 20. h4 {[%emt 0:00:45]} Qc7 {[%emt 0:09:16]} 21. g4 {[%emt 0:07:05]} Rac8 {[%emt 0:05:50]} 22. Bd6 {[%emt 0:08:34]} Qb6 {[%emt 0:01:50]} 23. g5 {[%emt 0:02:17]} Bd4 {[%emt 0:03:21]} 24. Bg3 {[%emt 0:05:18]} Nc5 {[%emt 0:01:47]} 25. Qb4 {[%emt 0:00:46]} e5 {[%emt 0:00:26]} 26. Bf1 {[%emt 0:03:57]} Na4 {[%emt 0:02:55]} 27. Rd2 {[%emt 0:03:06]} Be3 {[%emt 0:02:04]} 28. Rd1 {[%emt 0:00:11]} Qc6 {[%emt 0:02:00]} 29. Bd3 {[%emt 0:01:19]} Qxf3 {[%emt 0:00:39]} 30. h5 {[%emt 0:00:52]} gxh5 {[%emt 0:04:03]} 31. g6 {[%emt 0:00:14]} Qxg3 {[%emt 0:03:26]} 32. gxf7+ {[%emt 0:00:39]} Kxf7 {[%emt 0:00:03]} 33. Qb3+ {[%emt 0:00:35]} Kf8 {[%emt 0:00:23]} 34. Bxb5 {[%emt 0:00:33]} Qg6+ {[%emt 0:01:15]} 35. Bd3 {[%emt 0:00:05]} Qc6 {[%emt 0:01:14]} 36. Bf5 {[%emt 0:02:59]} Nc3+ {[%emt 0:00:09]} 37. Qxc3 {[%emt 0:00:44]} Qxc3 {[%emt 0:00:02]} 38. bxc3 {[%emt 0:00:04]} Rc5 {[%emt 0:00:04]} 39. c4 Rxc4 {[%emt 0:00:31]} 40. Rxh5 {[%emt 0:01:07]} Rc3 {[%emt 0:00:05]} 41. Ka1 {[%emt 0:30:22]} Rb8 {[%emt 0:30:04]} 0-1

[Event "German Bundesliga 2021-22"]
[Site "Germany"]
[Date "2022.03.05"]
[Round "1.14"]
[White "Svane, Frederik"]
[Black "Sorensen, Hampus"]
[Result "1-0"]
[ECO "C77"]
[WhiteElo "2496"]
[BlackElo "2367"]
[Annotator "ChessBase"]
[PlyCount "53"]
[EventDate "2022.03.05"]
[EventType "team-tourn"]
[EventCountry "GER"]
[SourceTitle "playchess.com"]
[Source "ChessBase"]
[SourceQuality "1"]
[TimeControl "40/5400+30:1800+30"]

1. e4 {[%emt 0:00:00]} e5 {[%emt 0:00:00]} 2. Nf3 {[%emt 0:00:00]} Nc6 {[%emt 0:00:00]} 3. Bb5 {[%emt 0:00:00]} a6 {[%emt 0:00:00]} 4. Ba4 {[%emt 0:00:00]} Nf6 {[%emt 0:00:00]} 5. Nc3 {[%emt 0:00:00]} Bd6 {[%emt 0:06:33]} 6. d3 {[%emt 0:00:00]} Ne7 {[%emt 0:26:07]} 7. Nxe5 {[%emt 0:23:07]} Bxe5 {[%emt 0:04:25]} 8. d4 {[%emt 0:01:12]} Bxd4 {[%emt 0:02:27]} 9. Qxd4 {[%emt 0:00:09]} b5 {[%emt 0:01:41]} 10. e5 {[%emt 0:25:13]} Nc6 {[%emt 0:10:51]} 11. Qc5 {[%emt 0:01:23]} Ng4 {[%emt 0:01:51]} 12. e6 {[%emt 0:16:59]} Qe7 {[%emt 0:10:46]} 13. Qxe7+ {[%emt 0:00:06]} Nxe7 {[%emt 0:01:00]} 14. exf7+ {[%emt 0:00:40]} Kf8 {[%emt 0:05:15]} 15. Bb3 {[%emt 0:06:00]} c5 {[%emt 0:04:30]} 16. Bd5 {[%emt 0:03:17]} Nxd5 {[%emt 0:01:02]} 17. Nxd5 {[%emt 0:00:02]} Bb7 {[%emt 0:02:14]} 18. Nc7 {[%emt 0:12:41]} Rd8 {[%emt 0:05:58]} 19. Bg5 {[%emt 0:01:20]} Nf6 {[%emt 0:03:54]} 20. Ne8 {[%emt 0:00:49]} Bxg2 {[%emt 0:02:02]} 21. Rg1 {[%emt 0:01:22]} Kxf7 {[%emt 0:06:36]} 22. Nd6+ {[%emt 0:00:05]} Ke7 {[%emt 0:01:26]} 23. Nf5+ {[%emt 0:00:21]} Ke6 {[%emt 0:00:01]} 24. Nxg7+ {[%emt 0:00:07]} Kf7 {[%emt 0:00:02]} 25. Bxf6 {[%emt 0:00:07]} Kxf6 {[%emt 0:01:45]} 26. Rxg2 {[%emt 0:00:04]} Rhg8 {[%emt 0:00:08]} 27. Nh5+ {[%emt 0:00:07]} 1-0

[Event "German Bundesliga 2021-22"]
[Site "Germany"]
[Date "2022.03.05"]
[Round "1.15"]
[White "Stark, Lars"]
[Black "Heinemann, Thies"]
[Result "0-1"]
[ECO "A37"]
[WhiteElo "2386"]
[BlackElo "2495"]
[Annotator "ChessBase"]
[PlyCount "86"]
[EventDate "2022.03.05"]
[EventType "team-tourn"]
[EventCountry "GER"]
[SourceTitle "playchess.com"]
[Source "ChessBase"]
[SourceQuality "1"]
[TimeControl "40/5400+30:1800+30"]

1. c4 {[%emt 0:00:00]} c5 {[%emt 0:00:00]} 2. g3 {[%emt 0:00:00]} Nc6 {[%emt 0:00:00]} 3. Bg2 {[%emt 0:00:00]} g6 {[%emt 0:00:00]} 4. Nc3 {[%emt 0:00:00]} Bg7 {[%emt 0:00:00]} 5. Nf3 {[%emt 0:00:00]} e5 {[%emt 0:00:00]} 6. O-O {[%emt 0:00:00]} Nge7 {[%emt 0:00:00]} 7. Ne1 {[%emt 0:00:00]} d6 {[%emt 0:00:00]} 8. Nc2 {[%emt 0:00:00]} Be6 {[%emt 0:00:00]} 9. Ne3 {[%emt 0:00:00]} O-O {[%emt 0:00:00]} 10. d3 {[%emt 0:00:00]} Rb8 {[%emt 0:00:00]} 11. Ned5 {[%emt 0:04:15]} a6 {[%emt 0:06:52]} 12. a4 {[%emt 0:01:02]} a5 {[%emt 0:13:56]} 13. Bg5 {[%emt 0:08:16]} f6 {[%emt 0:01:29]} 14. Bd2 {[%emt 0:00:53]} b6 {[%emt 0:07:52]} 15. h3 {[%emt 0:14:57]} Nb4 {[%emt 0:07:43]} 16. Kh2 {[%emt 0:09:53]} Nexd5 {[%emt 0:05:56]} 17. Nxd5 {[%emt 0:04:56]} Nxd5 {[%emt 0:00:56]} 18. cxd5 {[%emt 0:01:28]} Bd7 {[%emt 0:01:05]} 19. Qc1 {[%emt 0:00:37]} f5 {[%emt 0:02:22]} 20. Bh6 {[%emt 0:04:04]} f4 {[%emt 0:03:29]} 21. Bxg7 {[%emt 0:00:06]} Kxg7 {[%emt 0:00:12]} 22. b3 {[%emt 0:02:45]} Qg5 {[%emt 0:07:24]} 23. Qc4 {[%emt 0:00:37]} Rf7 {[%emt 0:10:34]} 24. Qa6 {[%emt 0:03:23]} Qd8 {[%emt 0:03:40]} 25. h4 {[%emt 0:04:27]} Ra8 {[%emt 0:02:51]} 26. Qc4 {[%emt 0:00:07]} g5 {[%emt 0:03:11]} 27. e3 {[%emt 0:21:16]} Qf6 {[%emt 0:07:09]} 28. exf4 {[%emt 0:03:34]} exf4 {[%emt 0:03:05]} 29. Rae1 {[%emt 0:00:29]} gxh4 {[%emt 0:03:22]} 30. Qxf4 {[%emt 0:02:53]} Qxf4 {[%emt 0:02:07]} 31. gxf4 {[%emt 0:00:07]} Raf8 {[%emt 0:02:41]} 32. Rg1 {[%emt 0:05:07]} Kh6 {[%emt 0:02:05]} 33. Bh3 {[%emt 0:01:22]} Bxh3 {[%emt 0:00:29]} 34. Kxh3 {[%emt 0:00:06]} Rxf4 {[%emt 0:00:19]} 35. Re6+ {[%emt 0:04:06]} Kh5 {[%emt 0:01:39]} 36. Rxd6 {[%emt 0:01:13]} Rxf2 {[%emt 0:00:45]} 37. Rg2 {[%emt 0:00:05]} R8f3+ {[%emt 0:01:18]} 38. Kh2 {[%emt 0:00:05]} Rxg2+ {[%emt 0:00:54]} 39. Kxg2 {[%emt 0:00:05]} Kg4 {[%emt 0:00:40]} 40. Rd8 {[%emt 0:00:47]} h3+ {[%emt 0:00:34]} 41. Kh2 {[%emt 0:30:20]} Rxd3 {[%emt 0:00:00]} 42. d6 {[%emt 0:00:00]} Rd2+ {[%emt 0:00:00]} 43. Kg1 {[%emt 0:00:00]} h2+ {[%emt 0:00:00]} 0-1

[Event "German Bundesliga 2021-22"]
[Site "Germany"]
[Date "2022.03.05"]
[Round "1.15"]
[White "Moehn, Hans"]
[Black "Handke, Florian"]
[Result "1-0"]
[ECO "A05"]
[WhiteElo "2360"]
[BlackElo "2539"]
[Annotator "ChessBase"]
[PlyCount "81"]
[EventDate "2022.03.05"]
[EventType "team-tourn"]
[EventCountry "GER"]
[SourceTitle "playchess.com"]
[Source "ChessBase"]
[SourceQuality "1"]
[TimeControl "40/5400+30:1800+30"]

1. Nf3 {[%emt 0:00:00]} Nf6 {[%emt 0:00:00]} 2. g3 {[%emt 0:00:00]} g6 {[%emt 0:00:00]} 3. b3 {[%emt 0:00:00]} Bg7 {[%emt 0:00:00]} 4. Bb2 {[%emt 0:00:00]} d5 {[%emt 0:00:00]} 5. c4 {[%emt 0:00:00]} O-O {[%emt 0:00:00]} 6. Bg2 {[%emt 0:00:00]} Nc6 {[%emt 0:00:00]} 7. cxd5 {[%emt 0:00:06]} Nxd5 {[%emt 0:00:00]} 8. Bxg7 {[%emt 0:01:33]} Kxg7 {[%emt 0:00:00]} 9. Nc3 {[%emt 0:01:18]} Nxc3 {[%emt 0:00:00]} 10. dxc3 {[%emt 0:00:08]} e5 {[%emt 0:00:00]} 11. Qxd8 {[%emt 0:03:20]} Rxd8 {[%emt 0:00:00]} 12. Nd2 {[%emt 0:00:29]} Ne7 {[%emt 0:02:28]} 13. O-O-O {[%emt 0:04:32]} a5 {[%emt 0:30:16]} 14. Nc4 {[%emt 0:15:28]} Re8 {[%emt 0:03:12]} 15. Rd2 {[%emt 0:08:51]} a4 {[%emt 0:06:47]} 16. b4 {[%emt 0:02:26]} Nf5 {[%emt 0:01:05]} 17. Be4 {[%emt 0:18:17]} Be6 {[%emt 0:18:19]} 18. Na5 {[%emt 0:14:49]} Nd6 {[%emt 0:00:33]} 19. Bxb7 {[%emt 0:04:24]} Rxa5 {[%emt 0:12:29]} 20. Rxd6 {[%emt 0:01:10]} Ra7 {[%emt 0:01:05]} 21. Bc6 {[%emt 0:00:55]} cxd6 {[%emt 0:01:56]} 22. Bxe8 {[%emt 0:00:05]} a3 {[%emt 0:01:21]} 23. Kb1 {[%emt 0:08:33]} Bc4 {[%emt 0:09:52]} 24. Rd1 {[%emt 0:02:31]} Kf8 {[%emt 0:02:29]} 25. Bc6 {[%emt 0:00:09]} Ke7 {[%emt 0:00:39]} 26. Rd2 {[%emt 0:05:35]} Rc7 {[%emt 0:02:15]} 27. Be4 {[%emt 0:00:51]} f5 {[%emt 0:01:42]} 28. Bd3 {[%emt 0:02:59]} Be6 {[%emt 0:03:12]} 29. Rc2 {[%emt 0:00:16]} e4 {[%emt 0:02:48]} 30. Bb5 {[%emt 0:00:40]} d5 {[%emt 0:01:01]} 31. e3 {[%emt 0:01:42]} g5 {[%emt 0:00:19]} 32. Kc1 {[%emt 0:00:38]} Kd6 {[%emt 0:00:25]} 33. Kd2 {[%emt 0:00:21]} h6 {[%emt 0:02:00]} 34. c4 {[%emt 0:00:45]} dxc4 {[%emt 0:00:13]} 35. Kc3 {[%emt 0:00:04]} Ke5 {[%emt 0:00:15]} 36. Rd2 {[%emt 0:00:07]} f4 {[%emt 0:00:38]} 37. Ba6 {[%emt 0:05:17]} fxe3 {[%emt 0:01:02]} 38. fxe3 {[%emt 0:00:01]} Bd5 {[%emt 0:00:33]} 39. b5 {[%emt 0:00:53]} Kd6 {[%emt 0:00:33]} 40. b6 {[%emt 0:00:29]} Rc5 {[%emt 0:00:31]} 41. Bb7 {[%emt 0:00:00]} 1-0

[Event "German Bundesliga 2021-22"]
[Site "Germany"]
[Date "2022.03.05"]
[Round "1.15"]
[White "Dimitrijeski, Kristian"]
[Black "Froewis, Georg"]
[Result "1/2-1/2"]
[ECO "C00"]
[WhiteElo "2137"]
[BlackElo "2449"]
[Annotator "NA"]
[PlyCount "90"]
[EventDate "2022.03.05"]
[EventType "team-tourn"]
[EventCountry "GER"]
[SourceTitle "playchess.com"]
[Source "ChessBase"]
[SourceQuality "1"]
[TimeControl "40/5400+30:1800+30"]

1. e4 {[%emt 0:00:00]} e6 {[%emt 0:00:00]} 2. d3 {[%emt 0:00:00]} d5 {[%emt 0:00:00]} 3. Nd2 {[%emt 0:00:00]} Nf6 {[%emt 0:00:00]} 4. Ngf3 {[%emt 0:00:00]} Be7 {[%emt 0:00:00]} 5. g3 {[%emt 0:00:00]} O-O {[%emt 0:00:00]} 6. Bg2 {[%emt 0:00:00]} c5 {[%emt 0:00:00]} 7. O-O {[%emt 0:00:00]} Nc6 {[%emt 0:00:00]} 8. Re1 {[%emt 0:00:00]} h6 {[%emt 0:00:00]} 9. e5 {[%emt 0:00:00]} Nh7 {[%emt 0:00:00]} 10. Nf1 {[%emt 0:16:26]} Qc7 {[%emt 0:00:00]} 11. h4 {[%emt 0:01:31]} b5 {[%emt 0:00:00]} 12. N1h2 {[%emt 0:01:06]} Rd8 {[%emt 0:00:00]} 13. Bf4 {[%emt 0:04:36]} Bb7 {[%emt 0:00:04]} 14. h5 {[%emt 0:08:05]} a5 {[%emt 0:01:37]} 15. Ng4 {[%emt 0:06:49]} Bf8 {[%emt 0:01:03]} 16. Qd2 {[%emt 0:05:33]} a4 {[%emt 0:03:39]} 17. a3 {[%emt 0:15:36]} b4 {[%emt 0:02:01]} 18. Ngh2 {[%emt 0:06:51]} d4 {[%emt 0:44:06]} 19. Qe2 {[%emt 0:03:24]} c4 {[%emt 0:20:54]} 20. dxc4 {[%emt 0:02:17]} bxa3 {[%emt 0:00:06]} 21. bxa3 {[%emt 0:00:13]} Na5 {[%emt 0:00:08]} 22. Nd2 {[%emt 0:06:55]} Bxg2 {[%emt 0:00:21]} 23. Kxg2 {[%emt 0:00:07]} Rac8 {[%emt 0:00:50]} 24. Nhf3 {[%emt 0:10:34]} Nxc4 {[%emt 0:01:30]} 25. Nxc4 {[%emt 0:00:02]} Qxc4 {[%emt 0:00:07]} 26. Qxc4 {[%emt 0:00:31]} Rxc4 {[%emt 0:00:02]} 27. Red1 {[%emt 0:01:19]} Ng5 {[%emt 0:07:27]} 28. Nxg5 {[%emt 0:01:06]} hxg5 {[%emt 0:00:06]} 29. Bxg5 {[%emt 0:00:08]} Rd5 {[%emt 0:00:10]} 30. Bf4 {[%emt 0:04:47]} Rxc2 {[%emt 0:00:21]} 31. Rd3 {[%emt 0:00:37]} Rc3 {[%emt 0:06:33]} 32. Rad1 {[%emt 0:00:52]} f6 {[%emt 0:06:55]} 33. Rxd4 {[%emt 0:02:08]} fxe5 {[%emt 0:07:55]} 34. Rxd5 {[%emt 0:00:13]} exd5 {[%emt 0:00:08]} 35. Bxe5 {[%emt 0:00:32]} Rxa3 {[%emt 0:00:37]} 36. Rxd5 {[%emt 0:00:21]} Rb3 {[%emt 0:00:10]} 37. Ra5 {[%emt 0:02:15]} a3 {[%emt 0:00:15]} 38. Ra7 {[%emt 0:02:06]} Rd3 {[%emt 0:01:31]} 39. g4 {[%emt 0:00:54]} Rd2 {[%emt 0:00:22]} 40. g5 {[%emt 0:01:43]} Rxf2+ {[%emt 0:00:41]} 41. Kxf2 {[%emt 0:00:00]} Bc5+ {[%emt 0:00:00]} 42. Ke2 {[%emt 0:00:00]} Bxa7 {[%emt 0:00:00]} 43. Kd3 {[%emt 0:00:00]} Bc5 {[%emt 0:00:00]} 44. Kc2 {[%emt 0:00:00]} Be7 {[%emt 0:00:00]} 45. Kb3 {[%emt 0:00:00]} Bxg5 {[%emt 0:00:00]} 1/2-1/2

[Event "German Bundesliga 2021-22"]
[Site "Germany"]
[Date "2022.03.05"]
[Round "1.16"]
[White "Naumann, Alexander"]
[Black "Richter, Philipp"]
[Result "1-0"]
[ECO "A35"]
[WhiteElo "2514"]
[BlackElo "2225"]
[Annotator "ChessBase"]
[PlyCount "79"]
[EventDate "2022.03.05"]
[EventType "team-tourn"]
[EventCountry "GER"]
[SourceTitle "playchess.com"]
[Source "ChessBase"]
[SourceQuality "1"]
[TimeControl "40/5400+30:1800+30"]

1. c4 {[%emt 0:00:00]} c5 {[%emt 0:00:00]} 2. Nf3 {[%emt 0:00:00]} Nf6 {[%emt 0:00:00]} 3. Nc3 {[%emt 0:00:00]} Nc6 {[%emt 0:00:00]} 4. e3 {[%emt 0:00:00]} e6 {[%emt 0:00:00]} 5. d4 {[%emt 0:00:00]} cxd4 {[%emt 0:00:00]} 6. exd4 {[%emt 0:00:00]} d5 {[%emt 0:00:00]} 7. Bg5 {[%emt 0:00:00]} Be7 {[%emt 0:01:21]} 8. c5 {[%emt 0:00:34]} Ne4 {[%emt 0:05:50]} 9. Bxe7 {[%emt 0:01:44]} Qxe7 {[%emt 0:05:27]} 10. Qc2 {[%emt 0:08:48]} Nxc3 {[%emt 0:15:38]} 11. Qxc3 {[%emt 0:00:16]} e5 {[%emt 0:02:38]} 12. dxe5 {[%emt 0:02:12]} O-O {[%emt 0:01:23]} 13. O-O-O {[%emt 0:19:13]} Be6 {[%emt 0:19:56]} 14. Bb5 {[%emt 0:14:09]} Rfc8 {[%emt 0:07:39]} 15. Kb1 {[%emt 0:02:05]} b6 {[%emt 0:06:57]} 16. Bxc6 {[%emt 0:01:26]} Rxc6 {[%emt 0:00:15]} 17. Nd4 {[%emt 0:00:24]} Rxc5 {[%emt 0:01:19]} 18. Qe3 {[%emt 0:00:14]} Qd7 {[%emt 0:06:57]} 19. Qd3 {[%emt 0:02:05]} Rac8 {[%emt 0:04:58]} 20. f4 {[%emt 0:02:10]} g6 {[%emt 0:00:45]} 21. h3 {[%emt 0:14:23]} f6 {[%emt 0:05:27]} 22. exf6 {[%emt 0:05:47]} Rf8 {[%emt 0:00:11]} 23. g4 {[%emt 0:01:31]} Rxf6 {[%emt 0:00:11]} 24. Rhe1 {[%emt 0:01:18]} Qf7 {[%emt 0:02:42]} 25. Re5 {[%emt 0:06:47]} Bd7 {[%emt 0:00:40]} 26. Rde1 {[%emt 0:07:50]} Rxf4 {[%emt 0:02:53]} 27. Re7 {[%emt 0:01:14]} Re4 {[%emt 0:00:12]} 28. R1xe4 {[%emt 0:02:01]} dxe4 {[%emt 0:01:41]} 29. Rxf7 {[%emt 0:00:17]} exd3 {[%emt 0:00:12]} 30. Rxd7 {[%emt 0:00:07]} Re5 {[%emt 0:01:54]} 31. Kc1 {[%emt 0:01:10]} Re3 {[%emt 0:00:12]} 32. Kd2 {[%emt 0:02:17]} Rxh3 {[%emt 0:00:11]} 33. Ne6 {[%emt 0:01:00]} h5 {[%emt 0:00:38]} 34. Rd8+ {[%emt 0:02:01]} Kf7 {[%emt 0:00:18]} 35. Ng5+ {[%emt 0:00:05]} Ke7 {[%emt 0:00:10]} 36. Nxh3 {[%emt 0:00:15]} Kxd8 {[%emt 0:00:10]} 37. g5 {[%emt 0:00:26]} Kd7 {[%emt 0:00:29]} 38. Kxd3 {[%emt 0:01:01]} Ke6 {[%emt 0:00:11]} 39. Ke4 {[%emt 0:00:03]} a6 {[%emt 0:00:28]} 40. Nf4+ {[%emt 0:00:05]} 1-0

[Event "German Bundesliga 2021-22"]
[Site "Germany"]
[Date "2022.03.05"]
[Round "1.16"]
[White "Rogozenco, Dorian"]
[Black "Harff, Marcel"]
[Result "1/2-1/2"]
[ECO "D51"]
[WhiteElo "2439"]
[BlackElo "2367"]
[Annotator "NA"]
[PlyCount "60"]
[EventDate "2022.03.05"]
[EventType "team-tourn"]
[EventCountry "GER"]
[SourceTitle "playchess.com"]
[Source "ChessBase"]
[SourceQuality "1"]
[TimeControl "40/5400+30:1800+30"]

1. Nf3 {[%emt 0:00:00]} d5 {[%emt 0:00:00]} 2. d4 {[%emt 0:00:00]} Nf6 {[%emt 0:00:00]} 3. c4 {[%emt 0:00:00]} e6 {[%emt 0:00:00]} 4. Nc3 {[%emt 0:00:00]} c6 {[%emt 0:00:00]} 5. Bg5 {[%emt 0:00:00]} Nbd7 {[%emt 0:00:00]} 6. e3 {[%emt 0:00:00]} h6 {[%emt 0:00:00]} 7. Bh4 {[%emt 0:00:00]} g5 {[%emt 0:00:00]} 8. Bg3 {[%emt 0:00:00]} Nh5 {[%emt 0:00:00]} 9. Be5 {[%emt 0:17:02]} Nxe5 {[%emt 0:01:59]} 10. dxe5 {[%emt 0:00:04]} Ng7 {[%emt 0:03:32]} 11. h3 {[%emt 0:23:47]} Bb4 {[%emt 0:08:26]} 12. Qc2 {[%emt 0:05:08]} Qa5 {[%emt 0:02:22]} 13. Bd3 {[%emt 0:04:20]} b6 {[%emt 0:09:47]} 14. Rc1 {[%emt 0:09:09]} dxc4 {[%emt 0:06:06]} 15. Bxc4 {[%emt 0:01:01]} Bxc3+ {[%emt 0:01:31]} 16. Qxc3 {[%emt 0:00:04]} Qxc3+ {[%emt 0:00:08]} 17. Rxc3 {[%emt 0:00:03]} Bb7 {[%emt 0:00:25]} 18. O-O {[%emt 0:11:14]} Nf5 {[%emt 0:06:43]} 19. b4 {[%emt 0:05:04]} a5 {[%emt 0:04:59]} 20. bxa5 {[%emt 0:13:46]} Rxa5 {[%emt 0:00:36]} 21. Rb1 {[%emt 0:00:17]} b5 {[%emt 0:00:22]} 22. e4 {[%emt 0:01:01]} Ne7 {[%emt 0:00:20]} 23. Bb3 {[%emt 0:00:55]} b4 {[%emt 0:04:01]} 24. Rc4 {[%emt 0:04:54]} c5 {[%emt 0:00:06]} 25. Rbc1 {[%emt 0:01:29]} O-O {[%emt 0:00:12]} 26. Rxc5 {[%emt 0:00:02]} Rxc5 {[%emt 0:00:06]} 27. Rxc5 {[%emt 0:00:03]} Bxe4 {[%emt 0:00:06]} 28. Nd2 {[%emt 0:00:01]} Bd5 {[%emt 0:00:38]} 29. Rb5 {[%emt 0:01:48]} Rd8 {[%emt 0:01:22]} 30. Nc4 {[%emt 0:02:57]} Nc6 {[%emt 0:01:07]} 1/2-1/2

[Event "German Bundesliga 2021-22"]
[Site "Germany"]
[Date "2022.03.05"]
[Round "1.16"]
[White "Hoenig, Alexander"]
[Black "Koellner, Ruben Gideon"]
[Result "0-1"]
[ECO "A06"]
[WhiteElo "2209"]
[BlackElo "2441"]
[Annotator "NA"]
[PlyCount "102"]
[EventDate "2022.03.05"]
[EventType "team-tourn"]
[EventCountry "GER"]
[SourceTitle "playchess.com"]
[Source "ChessBase"]
[SourceQuality "1"]
[TimeControl "40/5400+30:1800+30"]

1. Nf3 {[%emt 0:00:00]} d5 {[%emt 0:00:00]} 2. d4 {[%emt 0:00:00]} e6 {[%emt 0:00:00]} 3. Bf4 {[%emt 0:00:00]} c5 {[%emt 0:00:00]} 4. c3 {[%emt 0:00:00]} Bd6 {[%emt 0:00:00]} 5. Bxd6 {[%emt 0:00:00]} Qxd6 {[%emt 0:00:00]} 6. e3 {[%emt 0:00:00]} Nc6 {[%emt 0:00:00]} 7. Nbd2 {[%emt 0:00:00]} Nf6 {[%emt 0:00:00]} 8. a3 {[%emt 0:00:07]} e5 {[%emt 0:09:00]} 9. dxe5 {[%emt 0:04:00]} Nxe5 {[%emt 0:00:11]} 10. Nxe5 {[%emt 0:00:10]} Qxe5 {[%emt 0:00:07]} 11. Bb5+ {[%emt 0:00:29]} Kf8 {[%emt 0:01:49]} 12. Nf3 {[%emt 0:02:38]} Qc7 {[%emt 0:00:54]} 13. Be2 {[%emt 0:06:02]} g6 {[%emt 0:04:04]} 14. O-O {[%emt 0:21:42]} Be6 {[%emt 0:03:53]} 15. Qc2 {[%emt 0:03:56]} Bf5 {[%emt 0:06:14]} 16. Qc1 {[%emt 0:02:26]} Re8 {[%emt 0:06:30]} 17. Re1 {[%emt 0:03:12]} c4 {[%emt 0:02:34]} 18. Rd1 {[%emt 0:06:25]} Kg7 {[%emt 0:01:01]} 19. Rd4 {[%emt 0:01:17]} h5 {[%emt 0:02:20]} 20. h4 {[%emt 0:05:24]} Ng4 {[%emt 0:23:36]} 21. Rf4 {[%emt 0:02:19]} Qxf4 {[%emt 0:19:56]} 22. exf4 {[%emt 0:00:28]} Rxe2 {[%emt 0:00:05]} 23. Nd4 {[%emt 0:02:18]} Rxf2 {[%emt 0:00:13]} 24. Nxf5+ {[%emt 0:00:27]} gxf5 {[%emt 0:00:06]} 25. Qe1 {[%emt 0:07:47]} Rh6 {[%emt 0:01:58]} 26. Rd1 {[%emt 0:11:25]} Re6 {[%emt 0:04:06]} 27. Qxf2 {[%emt 0:00:20]} Nxf2 {[%emt 0:00:05]} 28. Kxf2 {[%emt 0:00:11]} Rb6 {[%emt 0:00:49]} 29. Rd2 {[%emt 0:00:12]} Kf6 {[%emt 0:01:20]} 30. Ke3 {[%emt 0:00:34]} Ke6 {[%emt 0:03:20]} 31. Kd4 {[%emt 0:00:35]} f6 {[%emt 0:00:54]} 32. Re2+ {[%emt 0:00:11]} Kd6 {[%emt 0:00:08]} 33. g3 {[%emt 0:01:04]} Rb5 {[%emt 0:02:11]} 34. a4 {[%emt 0:07:37]} Rb6 {[%emt 0:00:05]} 35. Re8 {[%emt 0:02:24]} Rxb2 {[%emt 0:00:35]} 36. Rd8+ {[%emt 0:00:11]} Kc6 {[%emt 0:01:40]} 37. Rc8+ {[%emt 0:00:27]} Kd7 {[%emt 0:00:23]} 38. Rh8 {[%emt 0:03:52]} Rd2+ {[%emt 0:00:31]} 39. Kc5 {[%emt 0:00:27]} b6+ {[%emt 0:00:41]} 40. Kb5 {[%emt 0:00:13]} Rb2+ {[%emt 0:00:28]} 41. Ka6 {[%emt 0:30:15]} d4 {[%emt 0:30:43]} 42. cxd4 {[%emt 0:01:06]} c3 {[%emt 0:00:09]} 43. Kb7 {[%emt 0:00:37]} c2 {[%emt 0:00:29]} 44. Rc8 {[%emt 0:00:14]} Kd6 {[%emt 0:00:55]} 45. Kxa7 {[%emt 0:01:36]} Kd5 {[%emt 0:00:18]} 46. Ka6 {[%emt 0:00:46]} Kxd4 {[%emt 0:00:11]} 47. a5 {[%emt 0:01:19]} bxa5 {[%emt 0:00:07]} 48. Kxa5 {[%emt 0:00:08]} Kd3 {[%emt 0:00:02]} 49. Rd8+ {[%emt 0:01:15]} Kc3 {[%emt 0:00:05]} 50. Rc8+ {[%emt 0:00:10]} Kb3 {[%emt 0:00:06]} 51. Rb8+ {[%emt 0:00:08]} Ka2 {[%emt 0:00:05]} 0-1